Cogmind - Beta 9.4 @@@ ROGUE MODE // 2020.03.02 @ 20:06:17 Player: David Result: Destroyed by H-55 Commando with Gauss Rifle Performance ------------- Evolutions (2) 1000 Regions Visited (7) 1400 Robots Destroyed (51) 255 Value Destroyed (1308) 1308 Prototype IDs (6) 120 Alien Tech Used (0) 0 Bonus (-35) -35 TOTAL SCORE: 4048 Bonus ------- High Alert Combat Kills 16 Friendly Fire -51 Cogmind --------- Core Integrity 0/550 Matter 267/300 Energy 87/100 System Corruption 0% Temperature Cool (0) Movement Core (250) Ox4 Location -8/Materials Parts ------- > --- POWER (1) -------- (None) > --- PROPULSION (4) --- Carbon-fiber Leg > --- UTILITY (4) ------ Advanced Signal Interpreter Hacking Suite Improved Trap Extractor > --- WEAPON (2) ------- EM Pulse Cannon Missile Launcher > --- INVENTORY (4) ---- Compact Wheel Launcher Guidance Computer Recoil Stabilizer Peak State ------------ > --- POWER ------------ Light Ion Engine > --- PROPULSION ------- Aluminum Leg Carbon-fiber Leg Titanium Leg > --- UTILITY ---------- Improved Sensor Array Advanced Signal Interpreter Hacking Suite Improved Trap Extractor > --- WEAPON ----------- Pulse Rifle Gauss Rifle > --- INVENTORY -------- Launcher Guidance Computer Pulse Rifle Great Maul Katana [Rating: 28] Favorites ----------- Power Light Ion Engine Engine Light Ion Engine Propulsion Aluminum Leg Treads Light Treads Leg Aluminum Leg Wheel Wheel Flight Unit VTOL Module Utility Hacking Suite Device Improved Trap Extractor Storage Small Storage Unit Processor Targeting Computer Hackware Hacking Suite Weapon Improved Medium Laser Energy Gun Improved Medium Laser Energy Cannon EM Pulse Cannon Ballistic Gun Light Assault Rifle Launcher Grenade Launcher Special Weapon Mining Laser Impact Weapon Great Maul Slashing Weapon Katana Build | -11 -10 -10 -9 -9 -9 -8 -8 ------- Run | Scr Mat Min Mat Min Exi Min Mat Slots Evolved 4 | . . . 2 . . . 2 Power . | . . . . . . . . Propulsion 2 | . . . 1 . . . 1 Utility 2 | . . . 1 . . . 1 Weapon . | . . . . . . . . Parts Attached 73 | 6 1 11 22 7 . 5 21 Power 4 | 1 . . 2 . . . 1 Engine 4 | 1 . . 2 . . . 1 Core . | . . . . . . . . Reactor . | . . . . . . . . Propulsion 20 | 2 . 3 6 3 . 2 4 Treads 2 | . . 2 . . . . . Leg 14 | . . 1 6 3 . 1 3 Wheel 2 | 2 . . . . . . . Hover . | . . . . . . . . Flight 2 | . . . . . . 1 1 Utility 8 | 1 1 1 1 1 . . 3 Device 3 | . . . . 1 . . 2 Storage 1 | 1 . . . . . . . Processor 3 | . 1 1 . . . . 1 Hackware 1 | . . . 1 . . . . Protection . | . . . . . . . . Artifact . | . . . . . . . . Weapon 41 | 2 . 7 13 3 . 3 13 Energy Gun 22 | . . 4 8 2 . 1 7 Energy Cannon 1 | . . . . . . . 1 Ballistic Gun 7 | 2 . 1 3 . . . 1 Ballistic Cannon . | . . . . . . . . Launcher 4 | . . 1 2 . . . 1 Special Weapon 1 | . . 1 . . . . . Impact Weapon 2 | . . . . . . . 2 Slashing Weapon 4 | . . . . 1 . 2 1 Piercing Weapon . | . . . . . . . . Special Melee Weapon . | . . . . . . . . Unidentified Prototypes 4 | . . . 2 . . . 2 Parts Lost 28 | . . 10 1 . . 5 12 Power 3 | . . 1 . . . 1 1 Propulsion 8 | . . 2 . . . 2 4 Utility 4 | . . 2 . . . . 2 Weapon 13 | . . 5 1 . . 2 5 Highest Loss Streak 5 | . . 5 1 . . 5 5 Average Slot Usage (%) 73 | . 88 71 72 84 88 54 71 Engine 6 | . 14 1 9 11 11 2 3 Treads 2 | . . 11 . . . . . Leg 19 | . . 4 31 33 33 15 19 Wheel 2 | . 28 4 . . . . . Device 7 | . . . . 9 11 11 16 Storage 2 | . 14 10 . . . . . Processor 4 | . 2 16 . . . . 7 Hackware 7 | . . . 9 11 11 11 9 Energy Gun 10 | . . 6 14 19 22 4 6 Ballistic Gun 5 | . 28 9 5 . . . 4 Slashing Weapon 1 | . . . . . . 8 2 Naked Turns 8 | . . 5 3 . . . . Heaviest Build 15 | 11 11 11 13 12 12 12 15 Greatest Support 47 | 26 26 40 30 40 40 40 47 Greatest Overweight (x) 4 | . . . 1 3 . 1 4 Average Overweight (x) . | . . . . . . . . Largest Inventory Capacity 6 | 6 6 6 4 4 4 4 4 Average Capacity 4 | 5 6 5 4 4 4 4 4 Most Carried 5 | 1 1 5 4 4 3 3 4 Average Carried 2 | . . 2 2 2 3 1 3 Final Capacity 6 | 6 6 4 4 4 4 4 4 Final Carried 4 | . . 4 2 3 3 1 3 Class Distribution -------------------- 57% | Mutant 42% | Scavenger-Mutant Dominant Class ---------------- Mutant | -10/Materials Mutant | -10/Mines Mutant | -9/Materials Scavenger-Mutant | -9/Mines Scavenger-Mutant | -9/Exiles Mutant | -8/Mines Scavenger-Mutant | -8/Materials Resources | -11 -10 -10 -9 -9 -9 -8 -8 ----------- Run | Scr Mat Min Mat Min Exi Min Mat Matter Collected 1157 | 189 43 174 372 94 . 30 255 Remotely . | . . . . . . . . Salvage Created 1626 | . 43 171 805 56 . 97 454 Parts 118 | . 2 17 57 5 . 3 34 Haulers Intercepted 4 | . . . 3 . . . 1 Recyclers Shooed 1 | . . . . . . . 1 Parts Field Recycled . | . . . . . . . . Retrieved Matter . | . . . . . . . . Parts Self-Destructed . | . . . . . . . . Prevented . | . . . . . . . . Kills | -11 -10 -10 -9 -9 -9 -8 -8 ------- Run | Scr Mat Min Mat Min Exi Min Mat Combat Hostiles Destroyed 39 | . 3 5 15 4 . 2 10 Melee 3 | . . . . . . 1 2 Guns 28 | . 3 2 11 4 . 1 7 AOE 8 | . . 3 4 . . . 1 Classes Destroyed 12 | . 1 2 6 . . 1 2 Worker 4 | . . . 1 . . . 3 Tunneler 1 | . . . 1 . . . . Hauler 4 | . . . 3 . . . 1 Recycler 1 | . . . 1 . . . . Operator 1 | . . . 1 . . . . Watcher 1 | . . . . . . . 1 Swarmer 12 | . 3 . . 4 . . 5 Grunt 14 | . . 3 9 . . 1 1 Brawler 3 | . . . 3 . . . . Duelist 1 | . . . . . . 1 . Sentry 7 | . . 2 3 . . . 2 Hunter 2 | . . . . . . . 2 Best Kill Streak 7 | . 3 2 7 4 . 2 5 Combat Bots Only 6 | . 3 2 6 4 . 2 4 Max Kills in Single Turn 2 | . 1 1 2 1 . 1 2 Gunslinging 1 | . . . . . . . 1 Exploded 1 | . . 1 1 . . . 1 Melee 1 | . . . . . . 1 1 Uniques/NPCs Destroyed . | . . . . . . . . Combat | -11 -10 -10 -9 -9 -9 -8 -8 -------- Run | Scr Mat Min Mat Min Exi Min Mat Damage Taken 3802 | . 66 879 525 116 . 584 1632 Core 1018 | . 10 215 36 20 . 169 568 Absorbed by Shields . | . . . . . . . . Core Remaining (%) 51 | 100 . 10 . . . 43 . Volleys Fired 149 | . 14 18 49 7 15 7 39 Largest 2 | . 2 2 2 2 2 2 2 Hottest 131 | . 40 79 131 112 112 112 126 Shots Fired 257 | . 28 27 92 14 30 8 58 Gun 245 | . 28 23 85 14 30 8 57 Cannon . | . . . . . . . . Launcher 12 | . . 4 7 . . . 1 Special . | . . . . . . . . Kinetic 101 | . 28 21 27 . . . 25 Thermal 137 | . . 1 58 14 30 8 26 Explosive 12 | . . 4 7 . . . 1 Electromagnetic 7 | . . 1 . . . . 6 Robot Hit Streak 11 | . 7 11 8 5 . 4 9 Robot Miss Streak 6 | . 3 3 6 2 . 2 3 Penetration Max 1 | . . . . . . . 1 Secondary Targets 5 | . . 1 2 . . . 2 Max Gunslinging Chain 1 | . . 1 1 . . . 1 Shots Hit Robots 141 | . 16 18 49 10 . 12 36 Core Hits 74 | . 6 12 30 4 . 3 19 Critical Hits 1 | . . . . . . . 1 Critical Kills . | . . . . . . . . Critical Parts Destroyed 1 | . . . . . . . 1 Melee Attacks 18 | . . . . 2 . 8 8 Impact 3 | . . . . . . . 3 Slashing 15 | . . . . 2 . 8 5 Piercing . | . . . . . . . . Sneak Attacks 1 | . . . . . . 1 . Combat Hostiles . | . . . . . . . . Follow-up Attacks . | . . . . . . . . Damage Inflicted 2898 | . 93 312 1073 214 . 393 813 Guns 1761 | . 93 115 806 101 . 66 580 Cannons . | . . . . . . . . Explosions 516 | . . 197 267 . . . 52 Melee 621 | . . . . 113 . 327 181 Ramming . | . . . . . . . . Kinetic 675 | . 93 101 237 . . . 244 Thermal 1005 | . . 14 569 101 . 66 255 Explosive 516 | . . 197 267 . . . 52 Electromagnetic 81 | . . . . . . . 81 Impact 84 | . . . . . . . 84 Slashing 537 | . . . . 113 . 327 97 Piercing . | . . . . . . . . Highest Corruption . | . . . . . . . . Average Corruption . | . . . . . . . . Corruption Purged . | . . . . . . . . Overload Shots . | . . . . . . . . Overflow Damage 117 | . . 22 . 29 . 57 9 Projectiles . | . . . . . . . . Explosions 22 | . . 22 . . . . . Melee 95 | . . . . 29 . 57 9 Knockbacks . | . . . . . . . . Impact . | . . . . . . . . Kinetic . | . . . . . . . . Secondary . | . . . . . . . . Self-Inflicted Damage 30 | . . 9 . . . . 21 Shots 2 | . . 1 . . . . 1 Rammed 1 | . . . . . . 1 . Targets Rammed 5 | . . . . . . 5 . Kicked 4 | . . . . . . 4 . Crushed . | . . . . . . . . Highest Temperature 378 | . . 9 312 294 378 97 60 Average Temperature 98 | . . 6 104 147 139 49 25 Received Heat Transfer 750 | . 15 141 207 18 . 243 126 Effects 1 | . . . . . 1 . . Matter Decay 1 | . . . . . 1 . . Siege Activations . | . . . . . . . . Robots Corrupted . | . . . . . . . . Combat Hostiles . | . . . . . . . . Parts Fried . | . . . . . . . . Impact Corruptions . | . . . . . . . . Robots Melted . | . . . . . . . . Combat Hostiles . | . . . . . . . . Parts Melted 2 | . . . 1 . . 1 . Heat Transferred 2109 | . . 37 1147 222 . 148 555 Parts Sabotaged . | . . . . . . . . Parts Stolen . | . . . . . . . . Parts Stripped . | . . . . . . . . Power Chain Reactions . | . . . . . . . . Missiles Intercepted . | . . . . . . . . Alert | -11 -10 -10 -9 -9 -9 -8 -8 ------- Run | Scr Mat Min Mat Min Exi Min Mat Peak Influence 430 | . 100 74 430 248 . 55 172 Average Influence 89 | . 68 46 250 170 . 9 63 Maximum Alert Level 2 | . . . 2 1 . . . Low Security (%) 85 | 100 100 100 27 80 . 100 100 Level 1 11 | . . . 56 19 . . . Level 2 2 | . . . 15 . . . . Level 3 . | . . . . . . . . Level 4 . | . . . . . . . . Level 5 . | . . . . . . . . High Security . | . . . . . . . . Max Security . | . . . . . . . . Squads Dispatched 5 | . . 1 2 . . . 2 Investigation 3 | . . 1 1 . . . 1 Extermination . | . . . . . . . . Reinforcement 2 | . . . 1 . . . 1 Assault . | . . . . . . . . Garrison . | . . . . . . . . Intercept . | . . . . . . . . Construction Impeded . | . . . . . . . . Haulers Reinforced . | . . . . . . . . Stealth | -11 -10 -10 -9 -9 -9 -8 -8 --------- Run | Scr Mat Min Mat Min Exi Min Mat Distress Signals 6 | . 1 . 3 . . . 2 Communications Jammed . | . . . . . . . . Distress Signals . | . . . . . . . . Times Spotted 84 | . 9 10 30 6 . 7 22 Peak Tracking Total 6 | . 4 5 6 5 . 3 6 Tactical Retreats 10 | . 1 2 2 2 . 2 1 Traps | -11 -10 -10 -9 -9 -9 -8 -8 ------- Run | Scr Mat Min Mat Min Exi Min Mat Traps Triggered 1 | . . . . . . . 1 Indirectly . | . . . . . . . . Trap Hack Attempts . | . . . . . . . . Triggered . | . . . . . . . . Disarmed . | . . . . . . . . Reprogrammed . | . . . . . . . . Reused 2 | . . . 2 . . . . Traps Extracted . | . . . . . . . . Installed 3 | . . . 3 . . . . Triggered 2 | . . . 2 . . . . Machines | -11 -10 -10 -9 -9 -9 -8 -8 ---------- Run | Scr Mat Min Mat Min Exi Min Mat Machines Disabled 4 | . . . 1 . . 1 2 Max in Single Turn 1 | . . . 1 . . 1 1 Machines Sabotaged . | . . . . . . . . Garrisons Compromised . | . . . . . . . . Overloaded Fab Kills . | . . . . . . . . Fab Network Shutdowns . | . . . . . . . . Hacking | -11 -10 -10 -9 -9 -9 -8 -8 --------- Run | Scr Mat Min Mat Min Exi Min Mat Machines Accessed 9 | . 4 1 2 1 . . 1 Terminals 6 | . 4 . 1 . . . 1 Fabricators . | . . . . . . . . Repair Stations . | . . . . . . . . Recycling Units . | . . . . . . . . Scanalyzers 1 | . . . 1 . . . . Garrison Access . | . . . . . . . . Total Hacks 18 | . 8 1 7 1 . . 1 Successful 11 | . 3 1 5 1 . . 1 Failed 7 | . 5 . 2 . . . . Catastrophic 1 | . 1 . . . . . . Database Lockouts . | . . . . . . . . Manual 1 | . . 1 . . . . . Terminals 11 | . 8 . 2 . . . 1 Fabricators . | . . . . . . . . Repair Stations . | . . . . . . . . Recycling Units . | . . . . . . . . Scanalyzers 5 | . . . 5 . . . . Garrison Access . | . . . . . . . . Terminal Hacks 7 | . 3 1 1 1 . . 1 Prototype ID Bank 1 | . 1 . . . . . . Open Door 2 | . . 1 . 1 . . . Emergency Access Points 1 | . . . . . . . 1 Patrol Status 1 | . 1 . . . . . . Zone Layout 2 | . 1 . 1 . . . . Fabricator Hacks . | . . . . . . . . Repair Station Hacks . | . . . . . . . . Recycling Unit Hacks . | . . . . . . . . Scanalyzer 4 | . . . 4 . . . . Insert Component 2 | . . . 2 . . . . Analyze 2 | . . . 2 . . . . Garrison Access Hacks . | . . . . . . . . Unauthorized Hacks . | . . . . . . . . Terminals . | . . . . . . . . Fabricators . | . . . . . . . . Repair Stations . | . . . . . . . . Recycling Units . | . . . . . . . . Scanalyzers . | . . . . . . . . Garrison Access . | . . . . . . . . Data Cores Recovered . | . . . . . . . . Used . | . . . . . . . . Hacking Detections 6 | . 3 . 2 . . . 1 Full Trace Events 1 | . . . 1 . . . . Feedback Events . | . . . . . . . . Feedback Blocked . | . . . . . . . . Robot Schematics Acquired . | . . . . . . . . Robots Built . | . . . . . . . . Matter . | . . . . . . . . Time . | . . . . . . . . Total Robot Build Rating . | . . . . . . . . Part Schematics Acquired 1 | . . . 1 . . . . Parts Built . | . . . . . . . . Matter . | . . . . . . . . Time . | . . . . . . . . Total Part Build Rating . | . . . . . . . . Parts Repaired . | . . . . . . . . Time . | . . . . . . . . Parts Recycled . | . . . . . . . . Recycled Matter . | . . . . . . . . Retrieved Matter . | . . . . . . . . Retrieved Components . | . . . . . . . . Parts Scanalyzed 2 | . . . 2 . . . . Part Schematics Acquired 1 | . . . 1 . . . . Parts Damaged . | . . . . . . . . Bothacking | -11 -10 -10 -9 -9 -9 -8 -8 ------------ Run | Scr Mat Min Mat Min Exi Min Mat Used RIF Installer . | . . . . . . . . Robots Hacked . | . . . . . . . . Non-combat . | . . . . . . . . Combat . | . . . . . . . . Robot Hacks Applied . | . . . . . . . . Relay Couplers Released . | . . . . . . . . Robots Rewired . | . . . . . . . . Allies Hacked . | . . . . . . . . Hacks Repelled . | . . . . . . . . Allies | -11 -10 -10 -9 -9 -9 -8 -8 -------- Run | Scr Mat Min Mat Min Exi Min Mat Total Allies 2 | . . 2 . . . . . Largest Group 2 | . . 2 . . . . . Highest-Rated Group 39 | . . 39 . . . . . Highest-Rated Ally 31 | . . 31 . . . . . Total Orders . | . . . . . . . . Ally Attacks 4 | . . 4 . . . . . Total Damage 63 | . . 63 . . . . . Kills . | . . . . . . . . Allies Corrupted . | . . . . . . . . Allies Melted . | . . . . . . . . Intel | -11 -10 -10 -9 -9 -9 -8 -8 ------- Run | Scr Mat Min Mat Min Exi Min Mat Robot Analysis Total . | . . . . . . . . Derelict Logs Recovered . | . . . . . . . . Drone Launches . | . . . . . . . . Drone Recoveries . | . . . . . . . . Exploration | -11 -10 -10 -9 -9 -9 -8 -8 ------------- Run | Scr Mat Min Mat Min Exi Min Mat Turns Passed 3151 | 71 196 578 488 183 493 510 632 Spaces Moved 2057 | 50 175 390 251 113 340 409 329 Core 130 | 12 . 11 29 1 . 4 73 Treads 124 | . . 124 . . . . . Legs 1359 | . . 134 222 112 340 318 233 Wheels 334 | 38 175 121 . . . . . Hover . | . . . . . . . . Flight 110 | . . . . . . 87 23 Fastest Speed 50 | 50 90 50 50 120 120 50 50 Average Speed 111 | 81 90 118 115 120 120 104 112 Slowest Speed 250 | 100 90 160 120 200 120 120 250 Overloaded Moves . | . . . . . . . . Propulsion Burnouts . | . . . . . . . . Robots Hopped . | . . . . . . . . Cave-ins Triggered . | . . . . . . . . Exploration Rate (%) 39 | 4 20 62 33 20 69 75 32 Regions Visited 7 Branch Regions 4 Pre-discovered Areas 1 | . . . . 1 . . . Known Exits Taken . | . . . . . . . . Unknown Exits Taken 7 | 1 1 1 1 1 1 1 . Scrap Searched 3 | . . 1 . . . 2 . Spaces Dug 2 | . . . . . . . 2 Terrain Destroyed 97 | . . 29 56 . . . 12 Melee . | . . . . . . . . Projectile 3 | . . . . . . . 3 AOE 94 | . . 29 56 . . . 9 Actions | -11 -10 -10 -9 -9 -9 -8 -8 --------- Run | Scr Mat Min Mat Min Exi Min Mat Total 2641 | 80 190 485 360 143 395 467 521 Wait 234 | 19 . 44 3 2 40 26 100 Move 2050 | 49 174 389 250 112 339 408 329 Hop . | . . . . . . . . Pick Up 65 | 6 1 15 14 6 . 5 18 Fast Attach 10 | . . . 7 1 . . 2 Attach 49 | 6 1 10 8 3 . 5 16 Detach 3 | . . . 1 1 . . 1 Swap 15 | . . 1 8 3 . . 3 Drop 39 | . . 8 17 6 . 3 5 Fire 149 | . 14 18 49 7 15 7 39 Melee 18 | . . . . 2 . 8 8 Ram . | . . . . . . . . Kick 5 | . . . . . . 5 . Crush . | . . . . . . . . Escape Stasis . | . . . . . . . . Rewire 1 | . . . . . 1 . . Trap 3 | . . . 3 . . . . Miscellaneous . | . . . . . . . . Route ------- -11/Scrapyard -10/Materials -10/Mines -9/Materials (discovered 2 exits: *Min x2) -9/Mines -9/Exiles (discovered 2 exits: [*Min x2]) -8/Mines -8/Materials History --------- Turn | Location | Event 4 | -11/Scrapyard | Discovered new exit (range 15) 72 | -11/Scrapyard | Entered Materials 148 | -10/Materials | Discovered new exit (range 12) 268 | -10/Materials | Entered Mines 302 | -10/Mines | Build established: Mutant 637 | -10/Mines | Assembled infested the area 639 | -10/Mines | Met a Derelict shopkeep closing up shop 642 | -10/Mines | Assisted by a Guerilla fighting off Assembled 682 | -10/Mines | Core integrity fell below 50% 722 | -10/Mines | Discovered new exit (range 12) 778 | -10/Mines | Found a hidden stash of uninstalled traps 826 | -10/Mines | Core integrity fell below 20% 846 | -10/Mines | Entered Materials 846 | -9/Materials | Evolved 2 slots: Propulsion x1, Utility x1 872 | -9/Materials | Lost 5 parts (1n2u2w) 921 | -9/Materials | Discovered new exit (range 11) 1285 | -9/Materials | Discovered new exit (range 9) 1334 | -9/Materials | Entered Mines 1337 | -9/Mines | Met a Derelict who couldn't figure out how to use a Trap Extractor 1441 | -9/Mines | Learned location of Storage (-7) 1492 | -9/Mines | Build established: Scavenger-Mutant 1512 | -9/Mines | Deemed a non-threat by the Exiles lab entrance 1512 | -9/Mines | Discovered new exit (range 5) 1517 | -9/Mines | Entered Exiles 1517 | -9/Exiles | Found Exiles lab destroyed 1565 | -9/Exiles | Discovered new exit (range 14) 1993 | -9/Exiles | Discovered new exit (range 14) 2010 | -9/Exiles | Entered Mines 2111 | -8/Mines | Discovered new exit (range 9) 2166 | -8/Mines | Core integrity fell below 50% 2194 | -8/Mines | Lost 5 parts (1p2n2w) 2405 | -8/Mines | Build established: Mutant 2520 | -8/Mines | Entered Materials 2520 | -8/Materials | Evolved 2 slots: Propulsion x1, Utility x1 2677 | -8/Materials | Lost 3 parts (1n1u1w) 2732 | -8/Materials | Core integrity fell below 50% 3056 | -8/Materials | Core integrity fell below 20% 3081 | -8/Materials | Lost 4 parts (1p1n2w) 3083 | -8/Materials | Build established: Scavenger-Mutant 3152 | -8/Materials | Destroyed by H-55 Commando with Gauss Rifle Last Messages --------------- Acquired Com. Wheel. Slug penetrates Wall. Titanium Leg destroyed. Destroyed Flight Unit. Imp. Sensor Array destroyed. Slug penetrates Wall. M-13 Machinist fits Backup Power I on S-10 Pest. M-13 Machinist fits Backup Propulsion I on S-10 Pest. Carbon-fiber Leg destroyed. Penetrated by Slug. Katana destroyed. Penetrated by Slug. Pulse Rifle destroyed. Slug penetrates Wall. Acquired Missile Launcher. S-10 Pest destroyed. Hadron Collector disabled. Acquired EM Pulse Cannon. The unstable cave ceiling collapses. Slug penetrates Wall. Map ----- +----------------------------------------------------+ | ??????????????????????????????????????? | | ??????????????????????????????????????? | | ??????????????????????????????????????? | | ??????????????????????????????????????? | | ??????????????????????????????????????? | | ??????????????????????????????????????? | | ??????????????????????????????????????? | | ??????????????????????????????????????? | | ??????????????????????????????????????? | | ??????????????????????????????????????? | | ??????????????????????????????????????? | | ??????????????????????????????????????? | | ?????????????????###########??????????? | | ???????????????+## # T ???????????? | | ???????????????? # ???????????? | | ????????????????? T # ????????????? | | ?????????????##### # ????????????? | | ????????###### ## ## %?????????????? | | ????????# """ ## ?????????????? | | ????????# "" ! ##+#+#???????????? | | ????????# """ % #???????????? | | ????????# h #???????????? | | ????????# #### #???????????? | | ????????# #????# #???????????? | | ????????# #????# ######??????? | | ????????# @ #????# # """? | | ????????###########????# / """? | | ??????????????????????######/#/# | | ??????????????????????# #??? | | ??????????????????????# [[[ #??????? | | ??????????????????????# [[[ #??????? | | ??????????????????????# [[[ #??????? | | ??????????????????????# #??????? | | ??????????????????????# """ #??????? | | ??????????????????????# """ ######## | | ??????????????????????# """ ## | | ??????????????????????# ## | | ???????????????????#####+####+### | | ???????????????????# ?### ### " | | ???????????????????# #| # " | | ??????????########?# # # "" | | ??????????# #?# + "%" | | ??????????# #?# # ### " | | ??????????# """ #?#### # #?# | | ??????????# """ #????###?#######?# | | ??????????# """ #?#??????????????#[ | | ??????????# #??????????#????##% | | ??????????#####+###################% | | ???????????# [%* | | ???????????# =[ | +----------------------------------------------------+ Best States ------------- Heat Dissipation 31 Energy Generation 10 Energy Capacity 250 Matter Stores 300 Matter Capacity 300 Sight Range 16 Robot Scan Range 13 Terrain Scan Range 20 Terrain Scan Density 10 Evasion (%) 60 Targeting Accuracy 10 Recoil Reduction 2 Offensive Hacking 10 Item Schematics ----------------- Mni. Grenade Launcher | -9/Materials | Scanalyzed Robot Schematics ------------------ None Fabricated ------------ Nothing Alien Tech Used ----------------- None Achievements -------------- None Challenges ------------ None Game ------ Seed OpticalVisualCapacitor Manual? 0 Play Time 00:49:34 Cumulative 38.0 hours Start 2020.03.02 @ 19:20:28 End 2020.03.02 @ 20:06:17 Sessions 1 Manual Loads 0 Difficulty Rogue Special Mode None Game No. 55 Rogue 55 Adventurer 0 Explorer 0 Win Type - Total 0 Types 0/0/0/0/0/0/0 Lore% 26 Gallery% 34 Achievement% 16 Wizard Run 0 Options --------- ASCII 0 Keyboard 0 Movement Mouse Keybinds 0 Fullscreen 1 Font 18/Smallcaps Map View 76x50 Tactical HUD 0 Map Filters NONE Filters NONE Steam 1 RUN: 7253eac6-6d25-46d0-98ba-2b487a436f0e